Cogmind - Beta 13 @@@ ROGUE MODE // 2024.04.06 @ 22:53:41 Player: Inomamais Result: Destroyed by D-53 Grenadier with Mini Grenade Launcher Performance ------------- Evolutions (1) 500 Regions Visited (4) 800 Robots Destroyed (47) 235 Value Destroyed (1190) 1190 Prototype IDs (4) 80 Alien Tech Used (0) 0 Bonus (0) 0 TOTAL SCORE: 2805 Bonus ------- None Cogmind --------- Core Integrity 0/400 Matter 239/300 Energy 99/100 System Corruption 0% Temperature Cool (0) Movement Core (50) Location -9/Mines Parts ------- > --- POWER (1) -------- (None) > --- PROPULSION (3) --- (None) > --- UTILITY (3) ------ (None) > --- WEAPON (2) ------- (None) > --- INVENTORY (5) ---- Ion Engine Improved Targeting Computer Beam Rifle Heavy Assault Rifle Hammer Peak State ------------ > --- POWER ------------ Improved Ion Engine > --- PROPULSION ------- Aluminum Leg Aluminum Leg Aluminum Leg > --- UTILITY ---------- Improved Heat Sink Large Storage Unit Hardened Medium Armor Plating > --- WEAPON ----------- Beam Rifle High-powered Shotgun > --- INVENTORY -------- Ion Engine Aluminum Leg Experimental Sensor Array Improved Targeting Computer Hardened Medium Armor Plating Hardened Medium Armor Plating Hardened Medium Armor Plating Hacking Suite Heavy EM Pulse Gun Heavy Assault Rifle High-powered Shotgun High-powered Shotgun High-powered Shotgun Grenade Launcher Hammer [Rating: 21] Favorites ----------- Power Improved Ion Engine Engine Improved Ion Engine Power Core Light Nuclear Core Propulsion Aluminum Leg Treads Light Treads Leg Aluminum Leg Wheel Compact Wheel Utility Small Storage Unit Device Heat Sink Storage Small Storage Unit Protection Hardened Light Armor Plating Weapon Beam Rifle Energy Gun Beam Rifle Ballistic Gun High-powered Shotgun Launcher Grenade Launcher Impact Weapon Hammer Build | -11 -10 -10 -9 -9 ------- Run | Yrd Mat Min Mat Min Slots Evolved 2 | . . . 2 . Power . | . . . . . Propulsion 1 | . . . 1 . Utility 1 | . . . 1 . Weapon . | . . . . . Parts Attached 60 | 6 3 5 44 2 Power 8 | 1 . 1 6 . Engine 7 | 1 . . 6 . Core 1 | . . 1 . . Reactor . | . . . . . Propulsion 15 | 2 . 2 11 . Treads 2 | 2 . . . . Leg 11 | . . . 11 . Wheel 2 | . . 2 . . Hover . | . . . . . Flight . | . . . . . Utility 10 | 1 . . 9 . Device 4 | . . . 4 . Storage 2 | 1 . . 1 . Processor . | . . . . . Hackware . | . . . . . Protection 4 | . . . 4 . Artifact . | . . . . . Weapon 27 | 2 3 2 18 2 Energy Gun 15 | 2 1 2 10 . Energy Cannon . | . . . . . Ballistic Gun 5 | . 1 . 3 1 Ballistic Cannon . | . . . . . Launcher 3 | . 1 . 1 1 Special Weapon . | . . . . . Impact Weapon 4 | . . . 4 . Slashing Weapon . | . . . . . Piercing Weapon . | . . . . . Special Melee Weapon . | . . . . . Unidentified Prototypes . | . . . . . Parts Lost 15 | . . 3 5 7 Power 2 | . . . 1 1 Propulsion 6 | . . 2 2 2 Utility 2 | . . . 1 1 Weapon 5 | . . 1 1 3 Highest Loss Streak 7 | . . 1 2 7 To Critical Strikes 1 | . . 1 . . Average Slot Usage (%) 92 | . 85 85 95 96 Engine 8 | . 14 1 10 9 Core 2 | . . 12 . . Treads 5 | . 28 13 . . Leg 17 | . . . 23 31 Wheel 8 | . . 14 9 . Device 6 | . . . 8 11 Storage 11 | . 14 14 11 11 Protection 7 | . . . 10 10 Energy Gun 12 | . 22 14 13 . Ballistic Gun 7 | . 5 14 5 11 Impact Weapon 2 | . . . 2 9 Naked Turns 6 | . . . . 6 Heaviest Build 42 | 14 15 13 42 42 Greatest Support 40 | 40 40 40 30 30 Greatest Overweight (x) 4 | 4 . . 2 2 Average Overweight (x) . | . . . . . Largest Inventory Capacity 15 | 8 8 8 15 15 Average Capacity 9 | 7 8 8 10 14 Most Carried 15 | 6 8 8 15 15 Average Carried 9 | 3 7 7 9 14 Final Capacity 15 | 8 8 8 15 5 Final Carried 15 | 6 8 8 15 5 Class Distribution -------------------- 69% | Mutant 30% | Scavenger-Mutant Dominant Class ---------------- Mutant | -10/Materials Mutant | -10/Mines Mutant | -9/Materials Scavenger-Mutant | -9/Mines Resources | -11 -10 -10 -9 -9 ----------- Run | Yrd Mat Min Mat Min Matter Collected 895 | 230 60 68 537 . Remotely . | . . . . . Salvage Created 1598 | . 246 136 1194 22 Parts 99 | . 16 4 79 . Haulers Intercepted 3 | . 1 . 2 . Recyclers Shooed . | . . . . . Parts Field Recycled . | . . . . . Retrieved Matter . | . . . . . Parts Self-Destructed . | . . . . . Prevented . | . . . . . Kills | -11 -10 -10 -9 -9 ------- Run | Yrd Mat Min Mat Min Combat Hostiles Destroyed 50 | . 8 6 27 9 Guns 38 | . 8 6 21 3 AOE 12 | . . . 6 6 Classes Destroyed 8 | . 3 . 4 1 Hauler 3 | . 1 . 2 . Operator 1 | . . . 1 . Watcher 2 | . . . 2 . Swarmer 16 | . 6 4 6 . Grunt 16 | . 2 2 12 . Brawler 1 | . . . 1 . Sentry 8 | . . . 8 . Assembled 9 | . . . . 9 Best Kill Streak 9 | . 5 3 6 9 Combat Bots Only 9 | . 5 3 6 9 Max Kills in Single Turn 5 | . 2 1 4 5 Gunslinging 1 | . 1 . . 1 Exploded 5 | . . . 4 5 Melee . | . . . . . Uniques/NPCs Destroyed . | . . . . . Combat | -11 -10 -10 -9 -9 -------- Run | Yrd Mat Min Mat Min Hostile Shots Fired 298 | . 32 49 135 82 Missed 68 | . 8 10 26 24 Damage Taken 3008 | . 194 400 1407 1007 Core 446 | . 24 16 161 245 Absorbed by Shields . | . . . . . Core Remaining (%) 92 | 100 . 84 . . Volleys Fired 129 | . 18 24 79 8 Largest 2 | . 2 2 2 2 Hottest 112 | . 90 70 112 55 Shots Fired 240 | . 36 45 146 13 Gun 234 | . 36 45 144 9 Cannon . | . . . . . Launcher 6 | . . . 2 4 Special . | . . . . . Kinetic 69 | . 4 24 32 9 Thermal 88 | . 14 18 56 . Explosive 6 | . . . 2 4 Electromagnetic 77 | . 18 3 56 . Robot Hit Streak 16 | . 8 7 16 4 Robot Miss Streak 6 | . 5 3 3 6 Penetration Max . | . . . . . Secondary Targets 6 | . 1 2 1 2 Max Gunslinging Chain 1 | . 1 1 1 1 Shots Hit Robots 177 | . 21 30 120 6 Core Hits 96 | . 11 9 57 19 Critical Kills 1 | . . 1 . . Critical Parts Destroyed 1 | . . 1 . . Critical Strikes 10 | . 2 3 5 . Burn 8 | . 2 1 5 . Destroy 2 | . . 2 . . Melee Attacks 9 | . . . 9 . Impact 9 | . . . 9 . Slashing . | . . . . . Piercing . | . . . . . Sneak Attacks 1 | . . . 1 . Combat Hostiles . | . . . . . Follow-up Attacks . | . . . . . Damage Inflicted 3299 | . 260 325 2098 616 Guns 2339 | . 260 325 1665 89 Cannons . | . . . . . Explosions 912 | . . . 385 527 Melee 48 | . . . 48 . Ramming . | . . . . . Kinetic 540 | . 8 135 308 89 Thermal 869 | . 100 150 619 . Explosive 912 | . . . 385 527 Electromagnetic 930 | . 152 40 738 . Impact 48 | . . . 48 . Slashing . | . . . . . Piercing . | . . . . . Highest Corruption . | . . . . . Average Corruption . | . . . . . Corruption Purged . | . . . . . Corruption Blocked . | . . . . . Overload Shots . | . . . . . Overflow Damage 11 | . . . 11 . Projectiles . | . . . . . Explosions 11 | . . . 11 . Melee . | . . . . . Knockbacks . | . . . . . Impact . | . . . . . Kinetic . | . . . . . Secondary . | . . . . . Self-Inflicted Damage 55 | . . . 16 39 Shots 2 | . . . 1 1 Rammed . | . . . . . Targets Rammed . | . . . . . Kicked . | . . . . . Crushed . | . . . . . Highest Temperature 222 | . 160 222 207 44 Average Temperature 71 | . 69 90 66 24 Received Heat Transfer 887 | . 30 138 519 200 Siege Activations . | . . . . . Robots Corrupted . | . . . . . Combat Hostiles . | . . . . . Parts Fried 5 | . . . 5 . Impact Corruptions . | . . . . . Robots Melted . | . . . . . Combat Hostiles . | . . . . . Parts Melted 2 | . . . 2 . Heat Transferred 2960 | . 444 518 1998 . Parts Sabotaged . | . . . . . Parts Stolen . | . . . . . Parts Stripped . | . . . . . Power Chain Reactions . | . . . . . Alert | -11 -10 -10 -9 -9 ------- Run | Yrd Mat Min Mat Min Peak Influence 377 | . 189 198 377 83 Initial 76 | . . 73 . 76 Average 143 | . 103 141 171 73 Maximum Alert Level 1 | . . . 1 . Low Security (%) 84 | 100 100 100 74 100 Level 1 15 | . . . 25 . Level 2 . | . . . . . Level 3 . | . . . . . Level 4 . | . . . . . Level 5 . | . . . . . High Security . | . . . . . Max Security . | . . . . . Squads Dispatched 3 | . . . 3 . Investigation . | . . . . . Extermination . | . . . . . Reinforcement 3 | . . . 3 . Assault . | . . . . . Garrison . | . . . . . Intercept . | . . . . . Searches Triggered . | . . . . . Construction Impeded . | . . . . . Haulers Reinforced . | . . . . . Active Scanning Responses . | . . . . . Cargo Convoy Interrupts . | . . . . . Stealth | -11 -10 -10 -9 -9 --------- Run | Yrd Mat Min Mat Min Distress Signals 5 | . 1 . 4 . Communications Jammed . | . . . . . Distress Signals . | . . . . . Times Spotted 74 | . 9 8 38 19 Peak Tracking Total 15 | . 4 3 10 15 Tactical Retreats 2 | . . 1 1 . Traps | -11 -10 -10 -9 -9 ------- Run | Yrd Mat Min Mat Min Traps Triggered . | . . . . . Indirectly . | . . . . . Trap Hack Attempts . | . . . . . Triggered . | . . . . . Disarmed . | . . . . . Reprogrammed . | . . . . . Reused 1 | . . . 1 . Traps Extracted . | . . . . . Installed 1 | . . . 1 . Triggered 1 | . . . 1 . Most Traps Carried 1 | . . . 1 . Machines | -11 -10 -10 -9 -9 ---------- Run | Yrd Mat Min Mat Min Machines Disabled 1 | . . . 1 . Max in Single Turn 1 | . . . 1 . Machines Repaired . | . . . . . Machines Dismantled . | . . . . . Machines Sabotaged . | . . . . . Overloaded Fab Kills . | . . . . . Hacking | -11 -10 -10 -9 -9 --------- Run | Yrd Mat Min Mat Min Machines Accessed 7 | . . . 7 . Terminals 7 | . . . 7 . Fabricators . | . . . . . Repair Stations . | . . . . . Recycling Units . | . . . . . Scanalyzers . | . . . . . Garrison Access . | . . . . . Total Hacks 22 | . . . 22 . Successful 10 | . . . 10 . Failed 12 | . . . 12 . Catastrophic 6 | . . . 6 . Database Lockouts . | . . . . . Manual 17 | . . . 17 . Terminals 22 | . . . 22 . Fabricators . | . . . . . Repair Stations . | . . . . . Recycling Units . | . . . . . Scanalyzers . | . . . . . Garrison Access . | . . . . . Terminal Hacks 7 | . . . 7 . Robot Analysis 1 | . . . 1 . Prototype ID Bank 2 | . . . 2 . Unreport Threat 2 | . . . 2 . Locate Traps 2 | . . . 2 . Fabricator Hacks . | . . . . . Repair Station Hacks . | . . . . . Recycling Unit Hacks . | . . . . . Scanalyzer . | . . . . . Garrison Access Hacks . | . . . . . Unauthorized Hacks 3 | . . . 3 . Terminals 3 | . . . 3 . Assimilate 2 | . . . 2 . Operators 1 | . . . 1 . Fabricators . | . . . . . Repair Stations . | . . . . . Recycling Units . | . . . . . Scanalyzers . | . . . . . Garrison Access . | . . . . . Data Cores Recovered . | . . . . . Used . | . . . . . Hacking Detections 7 | . . . 7 . Full Trace Events . | . . . . . Feedback Events . | . . . . . Feedback Blocked . | . . . . . Robot Schematics Acquired . | . . . . . Robots Built . | . . . . . Authchips . | . . . . . Time . | . . . . . Total Robot Build Rating . | . . . . . Part Schematics Acquired . | . . . . . Parts Built . | . . . . . Authchips . | . . . . . Time . | . . . . . Total Part Build Rating . | . . . . . Parts Repaired . | . . . . . Time . | . . . . . Parts Recycled . | . . . . . Recycled Matter . | . . . . . Retrieved Matter . | . . . . . Retrieved Components . | . . . . . Parts Scanalyzed . | . . . . . Part Schematics Acquired . | . . . . . Parts Damaged . | . . . . . Bothacking | -11 -10 -10 -9 -9 ------------ Run | Yrd Mat Min Mat Min Used RIF Installer . | . . . . . Robots Hacked . | . . . . . Non-combat . | . . . . . Combat . | . . . . . Robot Hacks Applied . | . . . . . Relay Couplers Released . | . . . . . Fabnet Peak Effective % . | . . . . . Robots Rewired . | . . . . . Allies Hacked . | . . . . . Hacks Repelled . | . . . . . Allies | -11 -10 -10 -9 -9 -------- Run | Yrd Mat Min Mat Min Total Allies . | . . . . . Largest Group . | . . . . . Highest-Rated Group . | . . . . . Highest-Rated Ally . | . . . . . Total Orders . | . . . . . Ally Attacks . | . . . . . Total Damage . | . . . . . Kills . | . . . . . Allies Corrupted . | . . . . . Allies Melted . | . . . . . Intel | -11 -10 -10 -9 -9 ------- Run | Yrd Mat Min Mat Min Robot Analysis Total 1 | . . . 1 . Derelict Logs Recovered 2 | . . 1 . 1 Drone Launches . | . . . . . Drone Recoveries . | . . . . . Exploration | -11 -10 -10 -9 -9 ------------- Run | Yrd Mat Min Mat Min Turns Passed 2617 | 93 253 453 1551 267 Spaces Moved 1486 | 47 117 366 822 134 Core 29 | 16 . . . 13 Treads 165 | 31 117 17 . . Legs 372 | . . . 251 121 Wheels 920 | . . 349 571 . Hover . | . . . . . Flight . | . . . . . Fastest Speed 50 | 50 160 90 90 50 Average Speed 131 | 169 160 100 131 176 Slowest Speed 260 | 250 160 160 260 260 Overloaded Moves . | . . . . . Propulsion Burnouts . | . . . . . Robots Hopped . | . . . . . Cave-ins Triggered . | . . . . . Exploration Rate (%) 40 | 4 23 69 75 33 Regions Visited 4 Branch Regions 2 Pre-discovered Areas 1 | . . 1 . . Known Exits Taken . | . . . . . Unknown Exits Taken 4 | 1 1 1 1 . Scrap Searched 3 | . . 2 . 1 Spaces Dug 7 | . . . 7 . Terrain Destroyed 35 | . . . 12 23 Melee 7 | . . . 7 . Projectile . | . . . . . AOE 28 | . . . 5 23 Terrain Rammed . | . . . . . Walls Destroyed . | . . . . . Machines Disabled . | . . . . . Actions | -11 -10 -10 -9 -9 --------- Run | Yrd Mat Min Mat Min Total 1906 | 58 147 413 1138 150 Wait 153 | . 6 10 131 6 Move 1482 | 46 116 365 821 134 Hop . | . . . . . Pick Up 34 | 6 3 5 20 . Fast Attach 11 | 6 . . 5 . Attach 10 | . . 3 6 1 Detach 1 | . . . 1 . Swap 39 | . 3 2 33 1 Drop 37 | . 1 4 32 . Fire 129 | . 18 24 79 8 Melee 9 | . . . 9 . Ram . | . . . . . Kick . | . . . . . Crush . | . . . . . Escape Stasis . | . . . . . Rewire . | . . . . . Trap 1 | . . . 1 . Miscellaneous . | . . . . . Route ------- -11/Scrapyard -10/Materials -10/Mines -9/Materials (discovered 3 exits: *Mat x2 / [*Min]) -9/Mines (discovered 1 exit: *Mat) History --------- Turn | Location | Event 38 | -11/Scrapyard | Discovered new exit (range 15) 94 | -11/Scrapyard | Entered Materials 310 | -10/Materials | Discovered new exit (range 7) 313 | -10/Materials | Build established: Mutant 347 | -10/Materials | Entered Mines 495 | -10/Mines | Learned 4 Materials zone layouts 557 | -10/Mines | Found a damaged Exp. Sensor Array with a note attached 560 | -10/Mines | Found Prototype Device 593 | -10/Mines | Learned location of Storage (-8) 786 | -10/Mines | Discovered new exit (range 16) 794 | -10/Mines | Found a hidden stash of uninstalled traps 800 | -10/Mines | Entered Materials 800 | -9/Materials | Evolved 2 slots: Propulsion x1, Utility x1 801 | -9/Materials | Identified exit to Materials 1211 | -9/Materials | Discovered new exit (range 8) 1333 | -9/Materials | Discovered exit to Materials (range 6) 2351 | -9/Materials | Entered Mines 2378 | -9/Mines | Met a Derelict bent on vengeance 2391 | -9/Mines | Discovered exit to Materials (range 6) 2518 | -9/Mines | Build established: Scavenger-Mutant 2569 | -9/Mines | Assembled infested the area 2586 | -9/Mines | Core integrity fell below 50% 2612 | -9/Mines | Released all parts (3) 2617 | -9/Mines | Core integrity fell below 20% 2618 | -9/Mines | Destroyed by D-53 Grenadier with Mini Grenade Launcher Last Messages --------------- 02605_ K-01 Serf collects debris. 02606_ U-05 Engineer lays Concrete. 02607_ as-57892 destroyed. 02608_ U-05 Engineer lays Concrete. 02608_ as-69295 destroyed. 02609_ U-05 Engineer lays Concrete. 02609_ K-01 Serf collects debris. 02609_ Hpw. Shotgun destroyed. 02610_ U-05 Engineer lays Concrete. 02611_ Aluminum Leg destroyed. 02611_ Hpw. Shotgun destroyed. 02611_ as-03149 destroyed. 02611_ as-67703 destroyed. 02612_ The unstable cave ceiling collapses. 02612_ Released Imp. Heat Sink. 02612_ Released Lrg. Storage Unit. 02612_ Released Aluminum Leg. 02612_ U-05 Engineer lays Concrete. 02612_ as-27085 destroyed. 02616_ U-05 Engineer lays Concrete. Map ----- +----------------------------------------------------+ | ?????????????????????????##### #????????????? | | ?????????????????????????????# !#????????????? | | ???????????????????????????###/%#####????????? | | ???????????????????????????# ! #????????? | | ???# ################# #### #????????? | | ???# #????????? | | ???################# ## ### #????????? | | ?????????????????### ?? #?# #????????? | | ????????????????## ? #?# #????????? | | ??????????????### ## ### #????????? | | ??????????????# ###########????????? | | ?????????????# ##????????????????? | | ?????????????# ##???????????????? | | ?????????????## ## #???????????????? | | ??????????????# ##??## #???????????????? | | ????????????????????## #???????????????? | | ????????????????????# #???????????????? | | ???????????????????## ###?????????????? | | ?????????????????### d # ??????????????? | | ????????????????## d #??????????????? | | ???????????????## k u ##??????????????? | | ???????????????# [##??????????????? | | ??????????????## =![!##??####???????? | | ??????????????# !!! ### ##??????? | | ??????????????# ! ## #??????? | | ?????????????# #@ = #??????? | | ?????????????? % #?# ##??????? | | ?????????????? ##???# ##???????? | | ??????????????? ??????## ####????????? | | ???????????????# ????????#########???????????? | | ?????????????????????????????????????????????? | | ?????????????????????????????????????????????? | | ?????????????????????????????????????????????? | | ?????????????????????????????????????????????? | | ?????????????????????????????????????????????? | | ?????????????????????????????????????????????? | | ?????????????????????????????????????????????? | | ?????????????????????????????????????????????? | | ?????????????????????????????????????????????? | | ?????????????????????????????????????????????? | | ?????????????????????????????????????????????? | | ?????????????????????????????????????????????? | | ?????????????????????????????????????????????? | | ?????????????????????????????????????????????? | | | | | | | | | | | | | +----------------------------------------------------+ Best States ------------- Heat Dissipation 42 Energy Generation 14 Energy Capacity 265 Matter Stores 300 Matter Capacity 300 Sight Range 16 Terrain Scan Density 10 Armor Coverage 225 Evasion (%) 50 Recoil Reduction 2 Item Schematics ----------------- None Robot Schematics ------------------ None Fabricated ------------ Nothing Alien Tech Used ----------------- None Achievements -------------- None Challenges ------------ None Game ------ Seed DynamicAntigravMediator Manual? 0 Play Time 00:30:28 Cumulative 76.4 hours Start 2024.04.06 @ 22:24:26 End 2024.04.06 @ 22:53:41 Sessions 1 Manual Loads 0 Difficulty Rogue Special Mode None Game No. 46 Rogue 45 Adventurer 1 Explorer 0 Win Type - Total 1 Types 1/0/0/0/0/0/0/0/0 Lore% 41 Gallery% 39 Achievement% 35 Wizard Run 0 Options --------- Layout 0 ASCII 1 Keyboard 1 Movement Numpad Keybinds 0 Fullscreen 1 Font 18/SmallcapsGlow Map View 76x50 Zoom Use 0% Tactical HUD 1 Map Filters NONE Filters NONE Steam 1 RUN: df49730f-b304-44a9-b2e1-1caaa709e184